bitfinex/quotes_BTCUSD_20250908
["timestamp","ask_amount","ask_price","bid_price","bid_amount"]
[1757309326748,1.20804573,111090.0,111080.0,0.00314145]
[1757309327696,0.67950067,111090.0,111080.0,0.00510145]
[1757309327819,0.76687857,111090.0,111080.0,0.00510145]
[1757309328039,0.9562311,111090.0,111080.0,0.00510145]
[1757309334813,0.57752604,111090.0,111080.0,0.00510145]
[1757309335045,0.9562311,111090.0,111080.0,0.00510145]
[1757309338498,1.23749962,111090.0,111080.0,0.00018145]
[1757309338961,1.58174262,111090.0,111080.0,0.00018145]
[1757309339158,1.62824067,111090.0,111080.0,0.00018145]
[1757309339891,0.52005041,111080.0,111070.0,4.662e-05]
[1757309340116,1.33170399,111080.0,111070.0,4.662e-05]
[1757309340567,1.35875647,111080.0,111070.0,4.662e-05]
[1757309342094,1.35975647,111080.0,111070.0,4.662e-05]
[1757309342498,0.79169888,111080.0,111070.0,4.662e-05]
[1757309342712,1.35975647,111080.0,111070.0,0.00312662]
[1757309343104,1.36075647,111080.0,111070.0,0.00312662]
[1757309346515,0.98209076,111080.0,111070.0,0.00312662]
[1757309347185,2.22873976,111080.0,111070.0,4.662e-05]
[1757309347377,1.98560176,111080.0,111070.0,4.662e-05]
[1757309347859,1.96660176,111080.0,111070.0,4.662e-05]
[1757309348061,1.96660176,111080.0,111070.0,0.00312662]
[1757309350026,1.96660176,111080.0,111070.0,4.662e-05]
[1757309350206,2.15599364,111080.0,111070.0,4.662e-05]
[1757309350656,2.15599364,111080.0,111070.0,0.00312662]
[1757309351478,1.96660176,111080.0,111070.0,0.00312662]
[1757309351707,1.96660176,111080.0,111070.0,4.662e-05]
[1757309354927,1.96660176,111080.0,111070.0,0.00312662]
[1757309361169,1.84640988,111080.0,111070.0,0.00312662]
[1757309361382,2.03580176,111080.0,111070.0,0.00312662]
[1757309363538,1.61965288,111080.0,111070.0,0.00523662]
[1757309363744,1.73078176,111080.0,111070.0,0.00523662]
[1757309365108,1.67981476,111080.0,111070.0,0.00523662]
[1757309365621,1.49631476,111080.0,111070.0,0.00523662]
[1757309365787,0.89961076,111080.0,111070.0,0.00523662]
[1757309365961,0.71021888,111080.0,111070.0,0.00523662]
[1757309366329,1.05085076,111080.0,111070.0,0.00523662]
[1757309369016,0.84426828,111080.0,111070.0,0.00523662]
[1757309369215,1.02431869,111080.0,111070.0,0.00523662]
[1757309393441,0.9324027,111080.0,111070.0,0.00523662]
[1757309393780,0.74301082,111080.0,111070.0,0.00523662]
[1757309394100,0.9324027,111080.0,111070.0,0.00523662]
[1757309395431,0.7811627,111080.0,111070.0,0.00523662]
[1757309395636,0.9320427,111080.0,111070.0,0.00523662]
[1757309397574,0.7811627,111080.0,111070.0,0.00523662]
[1757309397796,0.9320027,111080.0,111070.0,0.00523662]
[1757309408380,1.121313,111080.0,111070.0,0.00523662]
[1757309411263,1.31066409,111080.0,111070.0,4.662e-05]
[1757309411666,3.24514078,111080.0,111070.0,4.662e-05]
[1757309411895,3.43449187,111080.0,111070.0,4.662e-05]
[1757309412098,3.24514078,111080.0,111070.0,4.662e-05]
[1757309412424,2.93167285,111080.0,111070.0,4.662e-05]
[1757309418430,3.46102394,111080.0,111070.0,4.662e-05]
[1757309418844,3.49895394,111080.0,111070.0,4.662e-05]
[1757309420316,3.49795394,111080.0,111070.0,4.662e-05]
[1757309420750,3.49895394,111080.0,111070.0,4.662e-05]
[1757309421825,3.49795394,111080.0,111070.0,4.662e-05]
[1757309422038,3.49995394,111080.0,111070.0,4.662e-05]
[1757309423690,3.31120285,111080.0,111070.0,4.662e-05]
[1757309424356,3.74930285,111080.0,111070.0,4.662e-05]
[1757309425271,2.60357785,111080.0,111070.0,0.00310662]
[1757309425481,2.75501785,111080.0,111070.0,0.00310662]
[1757309425902,2.75501785,111080.0,111070.0,4.662e-05]
[1757309432459,2.69026685,111080.0,111070.0,0.00310662]
[1757309432668,1.74390558,111080.0,111070.0,0.00513662]
[1757309432875,2.31195885,111080.0,111070.0,0.00513662]
[1757309434038,2.31195885,111080.0,111070.0,0.00310662]
[1757309437619,1.99395185,111080.0,111070.0,0.00513662]
[1757309438002,1.99395185,111080.0,111070.0,0.00310662]
[1757309449270,1.99395185,111080.0,111070.0,4.662e-05]
[1757309457845,2.56200512,111080.0,111070.0,4.662e-05]
[1757309458826,1.99395185,111080.0,111070.0,4.662e-05]
[1757309461671,1.55585185,111080.0,111070.0,4.662e-05]
[1757309462230,2.12390512,111080.0,111070.0,4.662e-05]
[1757309463050,1.55585185,111080.0,111070.0,4.662e-05]
[1757309463195,2.12390512,111080.0,111070.0,4.662e-05]
[1757309464161,1.01213315,111080.0,111070.0,4.662e-05]
[1757309464329,2.14823969,111080.0,111070.0,4.662e-05]
[1757309467649,2.16512158,111080.0,111070.0,4.662e-05]
[1757309467872,2.21702296,111080.0,111070.0,4.662e-05]
[1757309468852,2.21702296,111080.0,111030.0,0.07151582]
[1757309468853,0.18011527,111040.0,111030.0,0.0041537]
[1757309469089,0.67087527,111040.0,111030.0,0.0009037]
[1757309469265,1.04957745,111040.0,111030.0,0.0029737]
[1757309469672,1.04957745,111040.0,111030.0,0.0062237]
[1757309470080,1.07663889,111040.0,111030.0,0.0062237]
[1757309470280,1.07668546,111040.0,111030.0,0.0082237]
[1757309470492,0.88747946,111040.0,111030.0,0.0082237]
[1757309470894,0.88747946,111040.0,111030.0,0.0062237]
[1757309471251,0.88747946,111040.0,111030.0,0.0102237]
[1757309471453,0.88747946,111040.0,111030.0,0.0072237]
[1757309471921,0.88747946,111040.0,111030.0,0.0092237]
[1757309474254,0.92873448,111040.0,111030.0,0.0092237]
[1757309474866,0.92865448,111040.0,111030.0,0.0092237]
[1757309475477,0.77797448,111040.0,111030.0,0.0092237]
[1757309475630,0.92865448,111040.0,111030.0,0.0092237]
[1757309476864,0.88739946,111040.0,111030.0,0.0092237]
[1757309477431,0.73671946,111040.0,111030.0,0.0092237]
[1757309477633,0.88735946,111040.0,111030.0,0.0092237]
[1757309478419,0.73671946,111040.0,111030.0,0.0092237]
[1757309478607,0.88735946,111040.0,111030.0,0.0092237]
[1757309482594,0.88735946,111040.0,111030.0,0.18935519]
[1757309482880,0.39671946,111040.0,111030.0,0.18935519]
[1757309489158,0.20722328,111040.0,111030.0,0.18935519]
[1757309492283,0.20722328,111040.0,111030.0,0.33983519]
[1757309497061,0.02710801,111040.0,111030.0,0.43167118]
[1757309497287,0.02385801,111040.0,111030.0,0.86654236]
[1757309497490,0.02385801,111040.0,111030.0,0.51472334]
[1757309497707,4.657e-05,111040.0,111030.0,0.70421952]
[1757309498061,4.657e-05,111040.0,111030.0,0.70321952]
[1757309498258,4.657e-05,111040.0,111030.0,0.70121952]
[1757309498463,4.657e-05,111040.0,111030.0,0.70521952]
[1757309498665,4.657e-05,111040.0,111030.0,0.71021952]
[1757309499368,4.657e-05,111040.0,111030.0,0.52072334]
[1757309499572,4.657e-05,111040.0,111030.0,0.71021952]
[1757309500251,4.657e-05,111040.0,111030.0,0.55969952]
[1757309500452,4.657e-05,111040.0,111030.0,0.71021952]
[1757309500804,4.657e-05,111040.0,111030.0,0.55969952]
[1757309500927,4.657e-05,111040.0,111030.0,0.71017952]
[1757309501991,4.657e-05,111040.0,111030.0,0.55969952]
[1757309502319,4.657e-05,111040.0,111030.0,0.71017952]
[1757309503101,4.657e-05,111040.0,111030.0,0.55969952]
[1757309503303,4.657e-05,111040.0,111030.0,0.71017952]
[1757309510080,4.657e-05,111040.0,111030.0,0.55969952]
[1757309510292,4.657e-05,111040.0,111030.0,0.71005952]
[1757309511124,4.657e-05,111040.0,111030.0,0.55969952]
[1757309511301,4.657e-05,111040.0,111030.0,0.71005952]
[1757309511710,4.657e-05,111040.0,111030.0,0.55969952]
[1757309511957,4.657e-05,111040.0,111030.0,0.71001952]
[1757309513859,4.657e-05,111040.0,111030.0,0.77921952]
[1757309521062,4.657e-05,111040.0,111030.0,0.74423952]
[1757309521264,4.657e-05,111040.0,111030.0,0.40446334]
[1757309521468,4.657e-05,111040.0,111030.0,0.55474334]
[1757309522223,4.657e-05,111040.0,111030.0,0.53380452]
[1757309522477,4.657e-05,111040.0,111030.0,0.52980452]
[1757309522677,4.657e-05,111040.0,111030.0,0.49775118]
[1757309522821,4.657e-05,111040.0,111030.0,0.49975118]
[1757309523013,4.657e-05,111040.0,111030.0,0.50275118]
[1757309523540,4.657e-05,111040.0,111030.0,0.50075118]
[1757309527015,0.37157627,111050.0,111040.0,0.15949]
[1757309532497,0.37149675,111050.0,111040.0,0.15949]
[1757309533108,0.37149675,111050.0,111040.0,0.004]
[1757309533265,0.71149675,111050.0,111040.0,0.004]
[1757309534166,0.73855544,111050.0,111040.0,0.004]
[1757309535035,0.54913878,111050.0,111040.0,0.004]
[1757309535253,0.73855544,111050.0,111040.0,0.004]
[1757309535465,0.88883544,111050.0,111040.0,0.004]
[1757309535655,0.18011527,111040.0,111030.0,0.15481006]
[1757309535950,0.36953193,111040.0,111030.0,0.15686006]
[1757309537294,0.36953193,111040.0,111030.0,0.15886006]
[1757309538179,0.55894859,111040.0,111030.0,0.15886006]
[1757309539106,0.55894859,111040.0,111030.0,0.16086006]
[1757309543034,0.55894859,111040.0,111030.0,0.15881006]
[1757309543268,0.18011527,111040.0,111030.0,0.16079006]
[1757309543544,0.36953193,111040.0,111030.0,0.16079006]
[1757309543809,0.56090859,111040.0,111030.0,0.00851006]
[1757309544020,0.56090859,111040.0,111030.0,0.15369006]
[1757309544458,0.60149932,111040.0,111030.0,0.15369006]
[1757309544654,0.60149932,111040.0,111030.0,0.15774006]
[1757309545364,0.60149932,111040.0,111030.0,0.15469006]
[1757309545564,0.60149932,111040.0,111030.0,0.15569006]
[1757309546198,0.60149932,111040.0,111030.0,0.15774006]
[1757309546619,0.60149932,111040.0,111030.0,0.15874006]
[1757309547411,0.60149932,111040.0,111030.0,0.15569006]
[1757309547574,0.60149932,111040.0,111030.0,0.15874006]
[1757309548626,0.60149932,111040.0,111030.0,0.16072006]
[1757309550333,0.60149932,111040.0,111030.0,0.15874006]
[1757309551269,0.60149932,111040.0,111030.0,0.15569006]
[1757309551908,0.60149932,111040.0,111030.0,0.00537006]
[1757309553948,0.222666,111040.0,111030.0,0.00537006]
[1757309554121,0.60149932,111040.0,111030.0,0.00537006]
[1757309554327,1.13219598,111040.0,111030.0,0.00537006]
[1757309554521,0.94277932,111040.0,111030.0,0.00537006]
[1757309554751,0.96856027,111040.0,111030.0,0.00537006]
[1757309554944,1.11888027,111040.0,111030.0,0.00537006]
[1757309555308,0.96856027,111040.0,111030.0,0.00537006]
[1757309555552,1.11888027,111040.0,111030.0,0.00537006]
[1757309557557,0.74004695,111040.0,111030.0,0.00537006]
[1757309557759,0.74004695,111040.0,111030.0,0.00842006]
[1757309558002,1.11888027,111040.0,111030.0,0.00537006]
[1757309558458,1.11888027,111040.0,111030.0,0.00842006]
[1757309559890,1.11924027,111040.0,111030.0,0.00842006]
[1757309560275,0.96856027,111040.0,111030.0,0.00842006]
[1757309560477,1.11944027,111040.0,111030.0,0.01040006]
[1757309562256,1.11944027,111040.0,111030.0,0.00842006]
[1757309563700,1.11944027,111040.0,111030.0,0.01040006]
[1757309566164,0.73864695,111040.0,111030.0,0.01040006]
[1757309566483,1.11944027,111040.0,111030.0,0.01040006]
[1757309567434,0.73864695,111040.0,111030.0,0.01040006]
[1757309567847,0.58776695,111040.0,111030.0,0.34141155]
[1757309568430,0.77718361,111040.0,111030.0,0.34141155]
[1757309568682,0.58776695,111040.0,111030.0,0.34141155]
[1757309568946,0.38059073,111040.0,111030.0,0.34141155]
[1757309569116,0.34,111040.0,111030.0,0.34141155]
[1757309569532,0.96768366,111060.0,111040.0,0.18011527]
[1757309569533,0.627187,111060.0,111040.0,0.18011527]
[1757309569784,0.967187,111060.0,111050.0,0.15619]
[1757309569996,1.34602032,111060.0,111050.0,0.00503]
[1757309570182,1.37307661,111060.0,111050.0,0.00503]
[1757309571085,1.37505661,111060.0,111050.0,0.00503]
[1757309571280,0.99524329,111060.0,111050.0,0.00503]
[1757309571486,1.37407661,111060.0,111050.0,0.00503]
[1757309571746,1.37307661,111060.0,111050.0,0.00503]
[1757309571919,1.16266751,111060.0,111050.0,0.00503]
[1757309572123,1.16366751,111060.0,111050.0,0.00503]
[1757309572307,1.3437802,111060.0,111050.0,0.00503]
[1757309573080,1.50402434,111060.0,111050.0,0.00503]
[1757309573286,0.18009905,111050.0,111040.0,0.15428]
[1757309573498,0.37149571,111050.0,111040.0,0.15629]
[1757309573695,0.36951571,111050.0,111040.0,0.15629]
[1757309573895,0.36951571,111050.0,111040.0,0.00505]
[1757309574097,0.36951571,111050.0,111040.0,0.15701]
[1757309575196,0.56091237,111050.0,111040.0,0.00505]
[1757309575386,0.56091237,111050.0,111040.0,0.15196]
[1757309575755,0.18207905,111050.0,111040.0,0.155]
[1757309575968,0.56091237,111050.0,111040.0,0.155]
[1757309577460,0.56091237,111050.0,111040.0,0.00304]
[1757309577663,0.56091237,111050.0,111040.0,0.15496]
[1757309579677,0.37149571,111050.0,111040.0,0.15697]
[1757309579910,0.36951571,111050.0,111040.0,0.15697]
[1757309580331,0.37149571,111050.0,111040.0,0.15697]
[1757309580738,0.36951571,111050.0,111040.0,0.15697]
[1757309580965,0.37149571,111050.0,111040.0,0.15697]
[1757309582330,0.37149571,111050.0,111040.0,0.15192]
[1757309582712,0.37149571,111050.0,111040.0,0.15697]
[1757309582913,0.398552,111050.0,111040.0,0.15697]
[1757309583741,0.396572,111050.0,111040.0,0.15697]
[1757309584624,0.398552,111050.0,111040.0,0.15697]
[1757309585367,0.398552,111050.0,111040.0,0.15496]
[1757309585526,0.398552,111050.0,111040.0,0.15697]
[1757309592415,0.39856569,111050.0,111040.0,0.15697]
[1757309593658,0.20913534,111050.0,111040.0,0.15697]
[1757309593871,0.39658569,111050.0,111040.0,0.15697]
[1757309594538,0.39856569,111050.0,111040.0,0.15697]
[1757309594906,0.39658569,111050.0,111040.0,0.15697]
[1757309596257,0.39856569,111050.0,111040.0,0.15697]
[1757309596787,0.39658569,111050.0,111040.0,0.15697]
[1757309602302,0.39853569,111050.0,111040.0,0.15653]
[1757309602508,0.39853569,111050.0,111040.0,0.00304]
[1757309602728,0.39853569,111050.0,111040.0,0.15448]
[1757309604515,0.39853569,111050.0,111040.0,0.15654]
[1757309606192,0.39658569,111050.0,111040.0,0.15654]
[1757309607306,0.20715534,111050.0,111040.0,0.15654]
[1757309607435,0.39658569,111050.0,111040.0,0.15654]
[1757309619989,0.39658569,111050.0,111040.0,0.0051]
[1757309620213,0.39853569,111050.0,111040.0,0.15622]
[1757309620429,0.39658569,111050.0,111040.0,0.15622]
[1757309620848,0.20910534,111050.0,111040.0,0.0051]
[1757309621047,0.20910534,111050.0,111040.0,0.15618]
[1757309621048,0.39658569,111050.0,111040.0,0.15618]
[1757309622261,0.3695294,111050.0,111040.0,0.15618]
[1757309626176,0.18009905,111050.0,111040.0,0.33629527]
[1757309626378,0.3695294,111050.0,111040.0,0.33629527]
[1757309630150,0.18009905,111050.0,111040.0,0.33629527]
[1757309630378,0.3695294,111050.0,111040.0,0.33629527]
[1757309631905,0.3695294,111050.0,111040.0,0.18521527]
[1757309632116,0.3695294,111050.0,111040.0,0.15658]
[1757309633416,0.18009905,111050.0,111040.0,0.33669527]
[1757309633629,0.3695294,111050.0,111040.0,0.33669527]
[1757309634610,0.3695294,111050.0,111040.0,0.15658]
[1757309634808,0.18009905,111050.0,111040.0,0.15658]
[1757309635013,0.3695294,111050.0,111040.0,0.15658]
[1757309637481,0.3695294,111050.0,111040.0,0.33669527]
[1757309640078,0.18009905,111050.0,111040.0,0.33669527]
[1757309640248,0.3695294,111050.0,111040.0,0.33669527]
[1757309641334,0.52911683,111060.0,111050.0,0.18009905]
[1757309641558,0.41054307,111070.0,111060.0,0.18008283]
[1757309641774,0.36949762,111070.0,111060.0,0.33156283]
[1757309641983,0.70949762,111070.0,111060.0,0.33677283]
[1757309643454,0.52943035,111070.0,111060.0,0.33677283]
[1757309643932,0.53043035,111070.0,111060.0,0.33677283]
[1757309644433,0.53143035,111070.0,111060.0,0.33677283]
[1757309645850,0.71149697,111070.0,111060.0,0.33677283]
[1757309646215,0.342,111070.0,111060.0,0.33677283]
[1757309646415,0.19143035,111070.0,111060.0,0.33677283]
[1757309646870,0.19043035,111070.0,111060.0,0.33677283]
[1757309647318,0.19043035,111070.0,111060.0,0.33777283]
[1757309647537,0.18943035,111070.0,111060.0,0.33777283]
[1757309647732,0.40916606,111080.0,111060.0,0.40697283]
[1757309647971,0.74916606,111080.0,111070.0,0.00313]
[1757309648380,0.74916606,111080.0,111070.0,0.00521]
[1757309652022,0.55973571,111080.0,111070.0,0.00521]
[1757309652233,0.74916606,111080.0,111070.0,0.00521]
[1757309654457,0.93837577,111080.0,111070.0,0.00521]
[1757309656376,0.94035577,111080.0,111070.0,0.00313]
[1757309656572,0.94035577,111080.0,111070.0,0.15641]
[1757309661077,0.94035577,111080.0,111070.0,0.00313]
[1757309661305,0.18006662,111070.0,111060.0,0.07229]
[1757309661488,0.36938665,111070.0,111060.0,0.22557372]
[1757309661681,0.37136665,111070.0,111060.0,0.22557372]
[1757309662857,0.37136665,111070.0,111060.0,0.22857372]
[1757309663931,0.36938665,111070.0,111060.0,0.22857372]
[1757309665191,0.36938665,111070.0,111060.0,0.40865655]
[1757309666534,0.36938665,111070.0,111060.0,0.22857372]
[1757309667636,0.36938665,111070.0,111060.0,0.40865655]
[1757309669299,0.36938665,111070.0,111060.0,0.22857372]
[1757309673407,0.18006662,111070.0,111060.0,0.22857372]
[1757309673606,0.36938665,111070.0,111060.0,0.22857372]
[1757309674389,0.18006662,111070.0,111060.0,0.22857372]
[1757309674716,0.36938665,111070.0,111060.0,0.22857372]
[1757309675271,0.36938665,111070.0,111060.0,0.40865655]
[1757309677560,0.36938665,111070.0,111060.0,0.22857372]
[1757309679324,0.17175905,111070.0,111060.0,0.22857372]
[1757309679528,0.18486016,111070.0,111060.0,0.22857372]
[1757309679708,0.36938665,111070.0,111060.0,0.22857372]
[1757309680436,0.36938665,111070.0,111060.0,0.40865655]
[1757309681222,0.18006662,111070.0,111060.0,0.40865655]
[1757309681444,0.36938665,111070.0,111060.0,0.40865655]
[1757309683820,0.18006662,111070.0,111060.0,0.40865655]
[1757309683998,0.36938665,111070.0,111060.0,0.40865655]
[1757309685381,0.18006662,111070.0,111060.0,0.40865655]
[1757309685723,0.36938665,111070.0,111060.0,0.40865655]
[1757309688960,0.36938665,111070.0,111060.0,0.22857372]
[1757309690986,0.36938665,111070.0,111060.0,0.40865655]
[1757309691396,0.36938665,111070.0,111060.0,0.22857372]
[1757309693022,0.36938665,111070.0,111060.0,0.40865655]
[1757309695208,0.18006662,111070.0,111060.0,0.40865655]
[1757309695437,0.36938665,111070.0,111060.0,0.40865655]
[1757309700696,0.18932003,111070.0,111060.0,0.40865655]
[1757309706454,0.36938665,111070.0,111060.0,0.40865655]
[1757309706697,0.18932003,111070.0,111060.0,0.40865655]
[1757309708919,0.36938665,111070.0,111060.0,0.40865655]
[1757309709124,0.36938665,111070.0,111060.0,0.25753655]
[1757309709354,0.37136665,111070.0,111060.0,0.22821372]
[1757309709551,0.36938665,111070.0,111060.0,0.22821372]
[1757309709722,0.36938665,111070.0,111060.0,0.40829655]
[1757309712592,0.37136665,111070.0,111060.0,0.22613372]
[1757309712723,0.37136665,111070.0,111060.0,0.22811372]
[1757309713364,0.37136665,111070.0,111060.0,0.07735372]
[1757309713770,0.36938665,111070.0,111060.0,0.22815372]
[1757309714426,0.36941771,111070.0,111060.0,0.22815372]
[1757309714819,0.18204662,111070.0,111060.0,0.22811372]
[1757309715031,0.37139771,111070.0,111060.0,0.22811372]
[1757309716072,0.37139771,111070.0,111060.0,0.07735372]
[1757309716274,0.37139771,111070.0,111060.0,0.22811372]
[1757309720175,0.37139771,111070.0,111060.0,0.22304372]
[1757309721021,0.37139771,111070.0,111060.0,0.40607655]
[1757309721284,0.37139771,111070.0,111060.0,0.40809655]
[1757309721508,0.36941771,111070.0,111060.0,0.40809655]
[1757309721967,0.36941771,111070.0,111060.0,0.33889655]
[1757309722195,0.36941771,111070.0,111060.0,0.15881372]
[1757309722624,0.37139771,111070.0,111060.0,0.15881372]
[1757309723672,0.37139771,111070.0,111060.0,0.00308372]
[1757309723881,0.9007488,111070.0,111060.0,0.00308372]
[1757309724092,2.0289408,111070.0,111060.0,0.00308372]
[1757309724295,2.0289408,111070.0,111060.0,0.15376372]
[1757309724738,2.0289408,111070.0,111060.0,0.00308372]
[1757309725566,2.1089408,111070.0,111060.0,0.00308372]
[1757309725762,2.1089408,111070.0,111060.0,8.372e-05]
[1757309725967,2.1089408,111070.0,111060.0,0.00108372]
[1757309730271,2.20085679,111070.0,111060.0,0.00108372]
[1757309730484,2.23257679,111070.0,111060.0,0.00108372]
[1757309730913,2.30321679,111070.0,111060.0,0.00108372]
[1757309735236,2.38321679,111070.0,111060.0,0.00108372]
[1757309740698,2.35021679,111070.0,111060.0,0.00108372]
[1757309741327,2.35149679,111070.0,111060.0,0.00108372]
[1757309745942,2.35021679,111070.0,111060.0,0.00108372]
[1757309746114,1.48069179,111070.0,111060.0,0.00108372]
[1757309746329,1.41904379,111070.0,111060.0,0.00108372]
[1757309746527,1.42032379,111070.0,111060.0,0.00108372]
[1757309747790,1.41904379,111070.0,111060.0,0.00108372]
[1757309751310,1.42032379,111070.0,111060.0,0.00108372]
[1757309752125,1.26964379,111070.0,111060.0,0.00108372]
[1757309752487,1.42032379,111070.0,111060.0,0.00108372]
[1757309752689,1.33904379,111070.0,111060.0,0.00108372]
[1757309754587,1.41904379,111070.0,111060.0,0.00108372]
[1757309757049,1.26836379,111070.0,111060.0,0.00108372]
[1757309757493,1.41904379,111070.0,111060.0,0.00108372]
[1757309760196,1.26836379,111070.0,111060.0,0.00108372]
[1757309760395,1.41904379,111070.0,111060.0,0.00108372]
[1757309760592,1.26836379,111070.0,111060.0,0.00108372]
[1757309760823,1.41904379,111070.0,111060.0,0.00108372]
[1757309762395,1.33904379,111070.0,111060.0,0.00108372]
[1757309764269,1.41904379,111070.0,111060.0,0.00108372]
[1757309767495,1.42032379,111070.0,111060.0,0.00108372]
[1757309769578,1.22105063,111070.0,111060.0,0.00108372]
[1757309769822,1.40111725,111070.0,111060.0,0.00108372]
[1757309772154,1.40111725,111070.0,111060.0,0.00108372]
[1757309774252,1.40111725,111070.0,111060.0,0.00616372]
[1757309774536,1.40111725,111070.0,111060.0,0.00408372]
[1757309774864,1.40111725,111070.0,111060.0,0.00108372]
[1757309776368,1.40123913,111070.0,111060.0,0.00108372]
[1757309776763,1.40123913,111070.0,111060.0,0.00408372]
[1757309781499,1.40123913,111070.0,111060.0,0.00108372]
[1757309786055,1.07718567,111070.0,111060.0,0.00108372]
[1757309786681,1.07718567,111070.0,111060.0,0.00403372]
[1757309787051,1.07718567,111070.0,111060.0,0.00108372]
[1757309787299,1.07682733,111070.0,111060.0,0.00108372]
[1757309789111,1.41682733,111070.0,111060.0,0.00108372]
[1757309789418,1.41682733,111070.0,111060.0,0.00403372]
[1757309791605,1.41682733,111070.0,111060.0,0.00600372]
[1757309791785,1.41682733,111070.0,111060.0,0.00403372]
[1757309792652,1.41682733,111070.0,111060.0,0.00108372]
[1757309792855,1.41682733,111070.0,111060.0,0.00403372]
[1757309793055,1.41682733,111070.0,111060.0,0.00108372]
[1757309810248,1.4709554,111070.0,111060.0,0.00108372]
[1757309811452,1.4709554,111070.0,111060.0,8.372e-05]
[1757309811657,1.4362754,111070.0,111060.0,8.372e-05]
[1757309811856,1.4372754,111070.0,111060.0,8.372e-05]
[1757309812869,1.41782733,111070.0,111060.0,8.372e-05]
[1757309813208,1.43726961,111070.0,111060.0,8.372e-05]
[1757309820634,1.43726639,111070.0,111060.0,8.372e-05]
[1757309829240,1.3078848,111070.0,111060.0,8.372e-05]
[1757309835990,1.3077248,111070.0,111060.0,8.372e-05]
[1757309836378,1.30774746,111070.0,111060.0,8.372e-05]
[1757309839182,1.32719653,111070.0,111060.0,8.372e-05]
[1757309856064,1.24719653,111070.0,111060.0,8.372e-05]
[1757309860375,1.24719653,111070.0,111060.0,0.00310372]
[1757309860938,1.24719653,111070.0,111060.0,8.372e-05]
[1757309865452,1.24719653,111070.0,111060.0,0.00310372]
[1757309865852,1.09667653,111070.0,111060.0,0.00310372]
[1757309866082,1.24711653,111070.0,111060.0,0.00310372]
[1757309866285,1.05769317,111070.0,111060.0,0.00310372]
[1757309866448,1.24711653,111070.0,111060.0,0.00310372]
[1757309866647,1.22766746,111070.0,111060.0,0.00310372]
[1757309870104,1.22766746,111070.0,111060.0,0.00505372]
[1757309872040,1.22766746,111070.0,111060.0,0.00310372]
[1757309872440,1.22766746,111070.0,111060.0,0.00507372]
[1757309872846,1.22766746,111070.0,111060.0,0.00310372]
[1757309873047,0.84882074,111070.0,111060.0,0.00507372]
[1757309873258,1.22766746,111070.0,111060.0,0.00507372]
[1757309876772,1.22766746,111070.0,111060.0,0.00310372]
[1757309880443,1.22766746,111070.0,111060.0,0.00507372]
[1757309882629,1.22766746,111070.0,111060.0,0.00310372]
[1757309885209,0.84882074,111070.0,111060.0,0.00310372]
[1757309885410,1.22766746,111070.0,111060.0,0.00310372]
[1757309886569,1.22766746,111070.0,111060.0,0.00507372]
[1757309895149,1.22766746,111070.0,111060.0,0.00310372]
[1757309895400,1.22766746,111070.0,111060.0,0.00507372]
[1757309895605,1.02022298,111070.0,111060.0,0.00507372]
[1757309895805,1.00676898,111070.0,111060.0,0.00507372]
[1757309897733,0.82336898,111070.0,111060.0,0.00507372]
[1757309897956,0.67142662,111070.0,111060.0,0.00507372]
[1757309898162,0.86084998,111070.0,111060.0,0.00507372]
[1757309898424,0.71048998,111070.0,111060.0,0.00507372]
[1757309898646,0.86076147,111070.0,111060.0,0.00507372]
[1757309899055,0.67142662,111070.0,111060.0,0.00507372]
[1757309899270,0.71040147,111070.0,111060.0,0.00507372]
[1757309899677,0.18106662,111070.0,111060.0,0.00507372]
[1757309899881,0.37040147,111070.0,111060.0,0.00507372]
[1757309900088,0.71040147,111070.0,111060.0,0.00507372]
[1757309901921,0.67142662,111070.0,111060.0,0.00507372]
[1757309902138,0.86076147,111070.0,111060.0,0.00507372]
[1757309902372,0.67142662,111070.0,111060.0,0.00507372]
[1757309902564,1.05009632,111070.0,111060.0,0.00507372]
[1757309903963,0.86076147,111070.0,111060.0,0.00507372]
[1757309905508,1.05009632,111070.0,111060.0,0.00507372]
[1757309906503,0.86076147,111070.0,111060.0,0.00507372]
[1757309908400,0.67142662,111070.0,111060.0,0.00507372]
[1757309908536,0.86076147,111070.0,111060.0,0.00507372]
[1757309919657,0.67142662,111070.0,111060.0,0.00507372]
[1757309919865,0.86076147,111070.0,111060.0,0.00507372]
[1757309922440,0.67142662,111070.0,111060.0,0.00507372]
[1757309922664,0.86076147,111070.0,111060.0,0.00507372]
[1757309923667,0.71040147,111070.0,111060.0,0.00507372]
[1757309923868,0.86076147,111070.0,111060.0,0.00507372]
[1757309925920,0.71040147,111070.0,111060.0,0.00507372]
[1757309926068,0.86072147,111070.0,111060.0,0.00507372]
[1757309928640,0.71040147,111070.0,111060.0,0.00507372]
[1757309928883,0.86072147,111070.0,111060.0,0.00507372]
[1757309929680,0.86072147,111070.0,111060.0,0.04472372]
[1757309935779,0.67138662,111070.0,111060.0,0.04472372]
[1757309935989,0.86072147,111070.0,111060.0,0.04472372]
[1757309937149,0.71040147,111070.0,111060.0,0.04472372]
[1757309937323,0.86072147,111070.0,111060.0,0.04472372]
[1757309940595,0.67138662,111070.0,111060.0,0.04472372]
[1757309940801,0.86072147,111070.0,111060.0,0.04472372]
[1757309941627,1.05005632,111070.0,111060.0,0.04472372]
[1757309944765,1.23939117,111070.0,111060.0,0.03973372]
[1757309945965,2.50317117,111070.0,111060.0,0.03973372]
[1757309946920,2.47257817,111070.0,111060.0,0.03973372]
[1757309947376,2.12171117,111070.0,111060.0,0.04269372]
[1757309947571,1.89429062,111070.0,111060.0,0.03973372]
[1757309947959,2.07435724,111070.0,111060.0,0.03973372]
[1757309949365,1.74579024,111070.0,111060.0,0.03973372]
[1757309949562,1.68247224,111070.0,111060.0,0.04269372]
[1757309949767,1.59692824,111070.0,111060.0,0.04269372]
[1757309952108,1.67692824,111070.0,111060.0,0.04269372]
[1757309952905,1.67692824,111070.0,111060.0,0.03973372]
[1757309954307,1.67692824,111070.0,111060.0,0.04269372]
[1757309955348,1.67692824,111070.0,111060.0,0.03973372]
[1757309956987,1.67692824,111070.0,111060.0,0.04269372]
[1757309958022,1.67692824,111070.0,111060.0,0.04466372]
[1757309958753,1.27215439,111070.0,111060.0,0.04466372]
[1757309958993,1.20410839,111070.0,111060.0,0.04466372]
[1757309960397,1.20425535,111070.0,111060.0,0.04466372]
[1757309961887,1.26686035,111070.0,111060.0,0.04466372]
[1757309962974,1.18686035,111070.0,111060.0,0.04466372]
[1757309963460,1.18686035,111070.0,111060.0,0.04269372]
[1757309964907,1.18686035,111070.0,111060.0,0.04470372]
[1757309965313,1.10474635,111070.0,111060.0,0.04470372]
[1757309966963,1.00292935,111070.0,111060.0,0.04470372]
[1757309968081,1.08292935,111070.0,111060.0,0.04470372]
[1757309970848,0.78928328,111070.0,111060.0,0.04470372]
[1757309974441,0.63888328,111070.0,111060.0,0.04470372]
[1757309974628,0.78920328,111070.0,111060.0,0.04470372]
[1757309975028,1.12920328,111070.0,111060.0,0.04470372]
[1757309975234,0.93979495,111070.0,111060.0,0.04470372]
[1757309975966,0.75038662,111070.0,111060.0,0.04470372]
[1757309976348,0.93979495,111070.0,111060.0,0.04470372]
[1757309979838,0.59979495,111070.0,111060.0,0.04470372]